[Event "FIDE World Rapid-ch Open 2018"]
[White "Nihal Sarin"]
[Black "Huzman, Alexander"]
[Site "St. Petersburg"]
[Round "3.70"]
[Annotator "ChessBase"]
[Result "0-1"]
[Date "2018.12.26"]
[WhiteElo "2576"]
[BlackElo "2580"]
[PlyCount "137"]
[TimeControl "900+10"]

1. Nf3 {[%emt 0:0:0]} Nf6 {[%emt 0:0:0]} 2. c4 {[%emt 0:0:1]} e6 {[%emt 0:0:4]
} 3. e3 {[%emt 0:0:3]} b6 {[%emt 0:0:19]} 4. Nc3 {[%emt 0:0:0]} Bb7 {[%emt 0:0:3]} 5. d4 {[%emt 0:0:6]} d5 {[%emt 0:0:52]} 6. cxd5 {[%emt 0:0:10]
} exd5 {[%emt 0:0:2]} 7. Bb5+ {[%emt 0:0:8]} c6 {[%emt 0:0:0]} 8. Bd3 {[%emt 0:0:3]} Be7 {[%emt 0:0:13]} 9. 0-0 {[%emt 0:0:9]} 0-0 {[%emt 0:0:5]
} 10. b3 {[%emt 0:1:16]} Nbd7 {[%emt 0:0:14]} 11. Bb2 {[%emt 0:0:0]} Bd6 {[%emt 0:0:5]} 12. Rc1 {[%emt 0:0:5]} Qe7 {[%emt 0:0:34]} 13. Ne2 {[%emt 0:0:28]} Ne4 {[%emt 0:0:53]} 14. Ng3 {[%emt 0:0:28]} f5 {[%emt 0:0:0]} 15. Qe2 {[%emt 0:0:12]} Rae8 {[%emt 0:0:4]} 16. Rfe1 {[%emt 0:1:10]
} g5 {[%emt 0:1:36]} 17. Nf1 {[%emt 0:0:39]} g4 {[%emt 0:0:25]} 18. N3d2 {[%emt 0:0:50]
} Qg5 {[%emt 0:0:10]} 19. g3 {[%emt 0:2:51]} h5 {[%emt 0:0:12]
} 20. f4 {[%emt 0:0:40]} gxf3 {[%emt 0:4:49]} 21. Nxf3 {[%emt 0:0:3]} Qh6 {[%emt 0:0:0]
} 22. Qg2 {[%emt 0:0:49]} Kh7 {[%emt 0:0:4]} 23. N1d2 {[%emt 0:0:50]
} Rg8 {[%emt 0:0:24]} 24. Bxe4 {[%emt 0:0:45]} fxe4 {[%emt 0:0:0]} 25. Nh4 {[%emt 0:0:1]} Qe6 {[%emt 0:2:36]} 26. Rf1 {[%emt 0:0:21]} Ref8 {[%emt 0:0:1]} 27. Rxf8 {[%emt 0:0:13]} Rxf8 {[%emt 0:0:1]} 28. Rf1 {[%emt 0:0:1]
} Ba6 {[%emt 0:0:13]} 29. Rxf8 {[%emt 0:0:4]} Bxf8 {[%emt 0:0:0]} 30. Nb1 {[%emt 0:0:58]} Nf6 {[%emt 0:0:15]} 31. Qf2 {[%emt 0:1:24]} Bh6 {[%emt 0:0:38]} 32. Qf5+ {[%emt 0:0:6]} Qxf5 {[%emt 0:0:1]} 33. Nxf5 {[%emt 0:0:1]
} Bd3 {[%emt 0:0:52]} 34. Nc3 {[%emt 0:1:0]} Bf8 {[%emt 0:0:0]} 35. h3 {[%emt 0:0:7]} b5 {[%emt 0:1:16]} 36. a3 {[%emt 0:2:12]} a5 {[%emt 0:0:4]
} 37. Na2 {[%emt 0:0:1]} Bb1 {[%emt 0:0:49]} 38. Nc1 {[%emt 0:0:0]} b4 {[%emt 0:0:2]} 39. axb4 {[%emt 0:1:12]} Bxb4 {[%emt 0:0:13]} 40. Kf2 {[%emt 0:0:6]} Bc2 {[%emt 0:0:1]} 41. Ke2 {[%emt 0:0:10]} Ne8 {[%emt 0:0:12]
} 42. Nh4 {[%emt 0:0:36]} Nd6 {[%emt 0:0:3]} 43. Ng2 {[%emt 0:0:0]} Nf5 {[%emt 0:0:29]} 44. g4 {[%emt 0:0:11]} hxg4 {[%emt 0:0:10]} 45. hxg4 {[%emt 0:0:1]} Nh6 {[%emt 0:0:1]} 46. Nf4 {[%emt 0:0:6]} Nxg4 {[%emt 0:0:16]
} 47. Ne6 {[%emt 0:0:2]} a4 {[%emt 0:0:7]} 48. Nd8 {[%emt 0:0:0]} c5 {[%emt 0:1:3]} 49. dxc5 {[%emt 0:0:43]} Bxc5 {[%emt 0:0:3]} 50. bxa4 {[%emt 0:0:7]} Bxe3 {[%emt 0:0:41]} 51. a5 {[%emt 0:0:23]} d4 {[%emt 0:0:1]
} 52. Bxd4 {[%emt 0:0:2]} Bxd4 {[%emt 0:0:1]} 53. Ne6 {[%emt 0:0:24]
} Ba7 {[%emt 0:0:36]} 54. Kd2 {[%emt 0:0:22]} Bb1 {[%emt 0:0:0]} 55. a6 {[%emt 0:0:5]} Kg6 {[%emt 0:0:13]} 56. Ne2 {[%emt 0:0:9]} Kf6 {[%emt 0:0:17]} 57. N6d4 {[%emt 0:0:6]} e3+ {[%emt 0:0:9]} 58. Kc3 {[%emt 0:0:6]
} Be4 {[%emt 0:0:4]} 59. Nb5 {[%emt 0:0:6]} Bb6 {[%emt 0:0:0]} 60. Nd6 {[%emt 0:0:7]} Bf3 {[%emt 0:0:18]} 61. Ng1 {[%emt 0:0:17]} Bc6 {[%emt 0:0:25]} 62. Ne2 {[%emt 0:0:7]} Nf2 {[%emt 0:0:14]} 63. Nc8 {[%emt 0:0:20]
} Ne4+ {[%emt 0:0:21]} 64. Kd3 {[%emt 0:0:7]} Bc5 {[%emt 0:0:0]} 65. a7 {[%emt 0:0:5]} Nf2+ {[%emt 0:0:11]} 66. Kc4 {[%emt 0:0:3]} Ne4 {[%emt 0:0:4]} 67. Nf4 {[%emt 0:0:12]} Nd6+ {[%emt 0:0:11]} 68. Kxc5 {[%emt 0:0:4]
} Nxc8 {[%emt 0:0:5]} 69. Kd4 {Ke5+} 0-1

[Event "FIDE World Rapid-ch Open 2018"]
[White "Kovalenko, Igor"]
[Black "Chen, Qi b"]
[Site "St. Petersburg"]
[Round "3.71"]
[Annotator "ChessBase"]
[Result "0-1"]
[Date "2018.12.26"]
[WhiteElo "2657"]
[BlackElo "2437"]
[PlyCount "116"]
[TimeControl "900+10"]

1. d4 Nf6 2. Nf3 d5 3. Nbd2 g6 4. e3 Bg7 5. b4 0-0 6. Bb2 b6 7. b5 c5 8. bxc6 Nxc6 9. a3 Bb7 10. Bd3 Rc8 11. 0-0 Na5 12. Qe2 Ne4 13. Rac1 Nc3 14. Bxc3 Rxc3 15. Nb1 Rc7 16. c3 Qd6 17. Qa2 Rfc8 18. Nfd2 e5 19. Rcd1 e4 20. Be2 Qe6 21. Nb3 Nc4 22. Kh1 f5 23. a4 Bf8 24. N3d2 Na5 25. Nb3 Nc4 26. N3d2 Na5 27. Rde1 Bd6 28. Bb5 Kg7 29. Nb3 Nc4 30. a5 h5 31. Rc1 h4 32. N1d2 Nxd2 33. Qxd2 Qf7 34. a6 Bc6 35. c4 Bxb5 36. cxb5 Qd7 37. Qe2 Rc4 38. Rb1 Rc2 39. Qd1 Qxb5 40. Nc5 Qc4 41. Nb7 Bb8 42. f4 Qxa6 43. Nc5 Qe2 44. Qxe2 Rxe2 45. Ne6+ Kf6 46. Ng5 Rxe3 47. Nh7+ Kg7 48. Ng5 Rc2 49. Rb5 Kf6 50. Nh3 Ke6 51. Ng5+ Kd6 52. Rbb1 Ree2 53. Rg1 Ke7 54. Nh3 Red2 55. Rbd1 a5 56. Rb1 Bc7 57. Rbc1 a4 58. Ra1 Rxd4 0-1

[Event "FIDE World Rapid-ch Open 2018"]
[White "Belozerov, Andrei"]
[Black "Zhigalko, Sergei"]
[Site "St. Petersburg"]
[Round "3.72"]
[Annotator "ChessBase"]
[Result "0-1"]
[Date "2018.12.26"]
[WhiteElo "2528"]
[BlackElo "2604"]
[PlyCount "116"]
[TimeControl "900+10"]

1. e4 {[%emt 0:0:0]} c5 {[%emt 0:0:0]} 2. Nf3 {[%emt 0:0:0]} Nc6 {[%emt 0:0:0]
} 3. Bb5 {[%emt 0:0:0]} Nf6 {[%emt 0:0:0]} 4. Bxc6 {[%emt 0:0:0]} dxc6 {[%emt 0:0:0]} 5. d3 {[%emt 0:0:1]} Bg4 {[%emt 0:0:0]} 6. h3 {[%emt 0:0:4]} Bh5 {[%emt 0:0:1]} 7. Nbd2 {[%emt 0:0:42]} Qc7 {[%emt 0:0:0]} 8. Nc4 {[%emt 0:1:19]} Nd7 {[%emt 0:0:19]} 9. g4 {[%emt 0:0:57]} Bg6 {[%emt 0:0:1]
} 10. Nh4 {[%emt 0:0:10]} b5 {[%emt 0:0:13]} 11. Ne3 {[%emt 0:0:0]} e6 {[%emt 0:0:2]} 12. Qf3 {[%emt 0:2:10]} Bd6 {[%emt 0:0:10]} 13. Bd2 {[%emt 0:0:57]} Be5 {[%emt 0:0:50]} 14. Rb1 {[%emt 0:0:44]} 0-0 {[%emt 0:0:49]
} 15. 0-0 {[%emt 0:1:4]} Rae8 {[%emt 0:0:14]} 16. b3 {[%emt 0:0:0]} h6 {[%emt 0:0:37]} 17. Rbe1 {[%emt 0:0:28]} Bh7 {[%emt 0:0:3]} 18. Qd1 {[%emt 0:0:44]} Rd8 {[%emt 0:0:56]} 19. Nhg2 {[%emt 0:1:17]} Bd4 {[%emt 0:0:45]
} 20. Kh1 {[%emt 0:0:58]} f5 {[%emt 0:5:8]} 21. exf5 {[%emt 0:0:0]} exf5 {[%emt 0:0:2]} 22. Nxf5 {[%emt 0:0:26]} Bxf5 {[%emt 0:0:3]} 23. gxf5 {[%emt 0:0:1]} Rxf5 {[%emt 0:0:4]} 24. Qg4 {[%emt 0:0:11]} Rf7 {[%emt 0:3:55]
} 25. Re6 {[%emt 0:1:5]} Nf6 {[%emt 0:1:51]} 26. Qg6 {[%emt 0:0:0]} Qd7 {[%emt 0:0:14]} 27. Nf4 {[%emt 0:0:42]} Nd5 {[%emt 0:1:6]} 28. Nxd5 {[%emt 0:1:10]} cxd5 {[%emt 0:0:6]} 29. Bxh6 {[%emt 0:1:7]} Rf6 {[%emt 0:0:50]
} 30. Rxf6 {[%emt 0:0:4]} Qxh3+ {[%emt 0:0:1]} 31. Kg1 {[%emt 0:0:1]
} Bxf6 {[%emt 0:0:2]} 32. Bf4 {[%emt 0:0:6]} Qe6 {[%emt 0:0:0]} 33. Bd2 {[%emt 0:0:17]} Qf7 {[%emt 0:0:10]} 34. Qxf7+ {[%emt 0:0:5]} Kxf7 {[%emt 0:0:1]} 35. Kg2 {[%emt 0:0:5]} Rd6 {[%emt 0:0:13]} 36. a4 {[%emt 0:0:15]
} bxa4 {[%emt 0:0:3]} 37. bxa4 {[%emt 0:0:1]} Rb6 {[%emt 0:0:0]} 38. Be3 {[%emt 0:0:29]} d4 {[%emt 0:0:8]} 39. Bf4 {[%emt 0:0:1]} Rb2 {[%emt 0:0:4]} 40. Rc1 {[%emt 0:0:8]} Ke6 {[%emt 0:0:19]} 41. Kf3 {[%emt 0:0:1]
} Kd5 {[%emt 0:0:3]} 42. Bd2 {[%emt 0:0:5]} Ra2 {[%emt 0:0:0]} 43. a5 {[%emt 0:0:1]} Bd8 {[%emt 0:0:9]} 44. Ke2 {[%emt 0:0:13]} c4 {[%emt 0:0:11]
} 45. dxc4+ {[%emt 0:0:4]} Kxc4 {[%emt 0:0:1]} 46. f4 {[%emt 0:0:26]
} Bxa5 {[%emt 0:0:37]} 47. Bxa5 {[%emt 0:0:6]} Rxa5 {[%emt 0:0:0]} 48. Rg1 {[%emt 0:0:1]} Ra2 {[%emt 0:0:1]} 49. Rxg7 {[%emt 0:0:9]} Rxc2+ {[%emt 0:0:17]} 50. Kd1 {[%emt 0:0:1]} Ra2 {[%emt 0:0:6]} 51. f5 {[%emt 0:0:5]
} a5 {[%emt 0:0:25]} 52. Ra7 {[%emt 0:0:4]} Kc3 {[%emt 0:0:0]} 53. f6 {[%emt 0:1:8]} Ra1+ {[%emt 0:0:8]} 54. Ke2 {[%emt 0:0:1]} d3+ {[%emt 0:0:0]} 55. Kf2 {[%emt 0:0:21]} d2 {[%emt 0:0:4]} 56. Rc7+ {[%emt 0:0:8]
} Kb3 {[%emt 0:0:10]} 57. Rb7+ {[%emt 0:0:11]} Ka4 {[%emt 0:0:0]} 58. Rd7 {[%emt 0:0:17]} d1=Q {[%emt 0:0:5]} 0-1

[Event "FIDE World Rapid-ch Open 2018"]
[White "Jones, Gawain C B"]
[Black "Sokolin, Leonid"]
[Site "St. Petersburg"]
[Round "3.73"]
[Annotator "ChessBase"]
[Result "1/2-1/2"]
[Date "2018.12.26"]
[WhiteElo "2682"]
[BlackElo "2508"]
[PlyCount "233"]
[TimeControl "900+10"]

1. e4 {[%emt 0:0:0]} e6 {[%emt 0:0:0]} 2. d4 {[%emt 0:0:0]} d5 {[%emt 0:0:0]} 3. Nd2 {[%emt 0:0:0]} Nf6 {[%emt 0:0:0]} 4. e5 {[%emt 0:0:0]} Nfd7 {[%emt 0:0:0]} 5. Bd3 {[%emt 0:0:2]} c5 {[%emt 0:0:0]} 6. c3 {[%emt 0:0:1]
} Nc6 {[%emt 0:0:0]} 7. Ngf3 {[%emt 0:0:1]} cxd4 {[%emt 0:0:0]} 8. cxd4 {[%emt 0:0:2]} f6 {[%emt 0:0:1]} 9. 0-0 {[%emt 0:0:19]} Be7 {[%emt 0:0:22]
} 10. exf6 {[%emt 0:0:54]} Bxf6 {[%emt 0:0:2]} 11. Re1 {[%emt 0:0:39]
} Qe7 {[%emt 0:0:46]} 12. Qe2 {[%emt 0:1:3]} 0-0 {[%emt 0:0:0]} 13. Qxe6+ {[%emt 0:0:21]} Qxe6 {[%emt 0:0:3]} 14. Rxe6 {[%emt 0:0:1]} Nb6 {[%emt 0:0:35]} 15. Re2 {[%emt 0:1:12]} Nxd4 {[%emt 0:0:12]} 16. Nxd4 {[%emt 0:0:1]
} Bxd4 {[%emt 0:0:1]} 17. Nb3 {[%emt 0:0:37]} Bf6 {[%emt 0:0:0]} 18. Be3 {[%emt 0:0:14]} Bd7 {[%emt 0:1:2]} 19. Bd4 {[%emt 0:0:43]} Rae8 {[%emt 0:0:29]} 20. Rae1 {[%emt 0:0:33]} Rxe2 {[%emt 0:0:8]} 21. Rxe2 {[%emt 0:0:1]} Bxd4 {[%emt 0:0:53]} 22. Nxd4 {[%emt 0:0:2]} Rf4 {[%emt 0:0:0]} 23. Nb3 {[%emt 0:0:45]} g6 {[%emt 0:1:4]} 24. f3 {[%emt 0:0:3]} Kf7 {[%emt 0:1:41]} 25. Kf2 {[%emt 0:0:16]} Bc6 {[%emt 0:0:23]} 26. Nc5 {[%emt 0:1:14]
} Rf6 {[%emt 0:0:34]} 27. Nb3 {[%emt 0:0:6]} Rf4 {[%emt 0:0:0]} 28. Ke3 {[%emt 0:0:2]} Rh4 {[%emt 0:0:20]} 29. g3 {[%emt 0:0:27]} Ra4 {[%emt 0:0:39]} 30. a3 {[%emt 0:0:3]} Nc4+ {[%emt 0:0:28]} 31. Kf2 {[%emt 0:0:20]
} Nd6 {[%emt 0:0:37]} 32. Ke1 {[%emt 0:1:21]} b6 {[%emt 0:0:0]} 33. Rc2 {[%emt 0:0:16]} Bd7 {[%emt 0:0:29]} 34. Kd2 {[%emt 0:1:7]} Ke6 {[%emt 0:0:22]} 35. Kc3 {[%emt 0:0:16]} Nc4 {[%emt 0:0:32]} 36. Nd4+ {[%emt 0:0:11]
} Kd6 {[%emt 0:0:0]} 37. Re2 {[%emt 0:0:32]} Ne5 {[%emt 0:0:0]} 38. f4 {[%emt 0:0:40]} Nxd3 {[%emt 0:0:1]} 39. Kxd3 {[%emt 0:0:1]} Rc4 {[%emt 0:0:10]} 40. Rc2 {[%emt 0:0:15]} Rxc2 {[%emt 0:1:1]} 41. Kxc2 {[%emt 0:0:4]
} a5 {[%emt 0:0:3]} 42. b4 {[%emt 0:0:24]} axb4 {[%emt 0:0:0]} 43. axb4 {[%emt 0:0:1]} Bf5+ {[%emt 0:0:37]} 44. Kd2 {[%emt 0:0:22]} Bd7 {[%emt 0:0:5]} 45. Ke3 {[%emt 0:0:6]} Bg4 {[%emt 0:0:10]} 46. Nb5+ {[%emt 0:0:24]
} Kc6 {[%emt 0:0:2]} 47. Nc3 {[%emt 0:0:1]} Kd6 {[%emt 0:0:0]} 48. Kd4 {[%emt 0:0:2]} Bf3 {[%emt 0:0:1]} 49. b5 {[%emt 0:0:34]} Ke6 {[%emt 0:1:20]} 50. Na4 {[%emt 0:0:28]} Be2 {[%emt 0:0:5]} 51. Nxb6 {[%emt 0:0:2]
} Bxb5 {[%emt 0:0:1]} 52. Nxd5 {[%emt 0:0:2]} Bc6 {[%emt 0:0:0]} 53. Ne3 {[%emt 0:0:6]} Bd7 {[%emt 0:0:23]} 54. g4 {[%emt 0:0:17]} h6 {[%emt 0:0:18]} 55. Nc4 {[%emt 0:1:39]} Kf6 {[%emt 0:0:35]} 56. Ne5 Be6 57. Ke4 {[%emt 0:0:11]} Bc8 {[%emt 0:0:4]} 58. h4 {[%emt 0:0:53]} Bb7+ {[%emt 0:0:1]
} 59. Ke3 {[%emt 0:0:9]} Bc8 {[%emt 0:0:4]} 60. Kf3 {[%emt 0:0:0]} g5 {[%emt 0:0:12]} 61. Kg3 {[%emt 0:0:38]} Be6 {[%emt 0:0:27]} 62. Nf3 {[%emt 0:0:22]} gxf4+ {[%emt 0:0:1]} 63. Kxf4 {[%emt 0:0:2]} Bd5 {[%emt 0:0:7]
} 64. Nd4 {[%emt 0:0:2]} Bb7 65. Nf5 {[%emt 0:0:30]} Kg6 {[%emt 0:1:5]
} 66. Nd6 {[%emt 0:0:2]} Bc6 {[%emt 0:0:5]} 67. Ne4 {[%emt 0:0:0]} Bb7 {[%emt 0:0:7]} 68. Ng3 {[%emt 0:0:19]} Bc8 {[%emt 0:0:6]} 69. Nf5 {[%emt 0:0:16]} Bb7 {[%emt 0:0:1]} 70. Ne3 {[%emt 0:0:42]} Bc8 {[%emt 0:0:1]
} 71. h5+ {[%emt 0:0:6]} Kg7 {[%emt 0:0:12]} 72. Ke5 {[%emt 0:0:0]} Ba6 {[%emt 0:0:8]} 73. Nf5+ Kh7 74. Kf6 {[%emt 0:0:15]} Be2 {[%emt 0:0:5]
} 75. Ne3 {[%emt 0:0:2]} Bf3 {[%emt 0:0:4]} 76. Kf5 {[%emt 0:0:0]} Be2 {[%emt 0:0:1]} 77. Nd5 {[%emt 0:0:8]} Bd3+ {[%emt 0:0:4]} 78. Kf6 {[%emt 0:0:5]} Bc4 {[%emt 0:0:7]} 79. Nf4 {[%emt 0:0:10]} Bb3 {[%emt 0:0:11]
} 80. Ng6 {[%emt 0:0:24]} Bd1 {[%emt 0:0:10]} 81. Ne5 {[%emt 0:0:0]} Be2 {[%emt 0:0:4]} 82. Kf7 {[%emt 0:0:4]} Bd1 {[%emt 0:0:4]} 83. Kf8 {[%emt 0:0:2]} Be2 {[%emt 0:0:5]} 84. Nd7 {[%emt 0:0:1]} Bc4 {[%emt 0:0:23]
} 85. Nf6+ {[%emt 0:0:39]} Kh8 {[%emt 0:0:0]} 86. Ke7 {[%emt 0:0:1]
} Kg7 {[%emt 0:0:5]} 87. Ne8+ {[%emt 0:0:2]} Kh7 {[%emt 0:0:0]} 88. Kf6 {[%emt 0:0:6]} Bb5 {[%emt 0:0:5]} 89. Ke7 {[%emt 0:0:35]} Be2 {[%emt 0:0:20]} 90. Kf7 {[%emt 0:0:14]} Bc4+ {[%emt 0:0:2]} 91. Kf8 {[%emt 0:0:1]
} Be2 {[%emt 0:0:5]} 92. Nf6+ {[%emt 0:0:3]} Kh8 {[%emt 0:0:0]} 93. Kf7 {[%emt 0:0:2]} Bd3 {[%emt 0:0:8]} 94. Nd7 {[%emt 0:0:3]} Kh7 {[%emt 0:0:6]} 95. Nf6+ Kh8 96. Nd5 {[%emt 0:0:49]} Bc4 {[%emt 0:0:9]} 97. Ke6 {[%emt 0:0:1]} Kg7 {[%emt 0:0:9]} 98. Ke5 {[%emt 0:0:1]} Bxd5 {[%emt 0:0:58]
} 99. Kxd5 {[%emt 0:0:2]} Kf6 {[%emt 0:0:1]} 100. Ke4 Ke6 101. Kf3 {[%emt 0:0:13]} Ke5 {[%emt 0:0:8]} 102. Ke3 {[%emt 0:0:1]} Ke6 {[%emt 0:0:5]
} 103. Ke4 {[%emt 0:0:3]} Kf6 {[%emt 0:0:0]} 104. Ke3 {[%emt 0:0:36]
} Ke5 {[%emt 0:0:3]} 105. Kf3 {[%emt 0:0:6]} Ke6 {[%emt 0:0:0]} 106. Kg2 {[%emt 0:0:10]} Ke5 {[%emt 0:0:1]} 107. Kg3 {[%emt 0:0:3]} Ke6 {[%emt 0:0:1]} 108. Kh4 {[%emt 0:0:9]} Kf6 {[%emt 0:0:1]} 109. g5+ {[%emt 0:0:1]
} hxg5+ {[%emt 0:0:1]} 110. Kg4 {[%emt 0:0:1]} Kg7 {[%emt 0:0:0]} 111. Kf5 {[%emt 0:0:2]} Kh6 {[%emt 0:0:1]} 112. Kg4 {[%emt 0:0:1]
} Kg7 {[%emt 0:0:1]} 113. Kxg5 {[%emt 0:0:2]} Kh7 {[%emt 0:0:1]} 114. h6 {[%emt 0:0:2]} Kh8 {[%emt 0:0:0]} 115. Kg6 {[%emt 0:0:1]} Kg8 {[%emt 0:0:0]} 116. h7+ {[%emt 0:0:1]} Kh8 {[%emt 0:0:0]} 117. Kh6 {[%emt 0:0:1]
} 1/2-1/2

[Event "FIDE World Rapid-ch Open 2018"]
[White "Vishnu Prasanna. V"]
[Black "Ponkratov, Pavel"]
[Site "St. Petersburg"]
[Round "3.74"]
[Annotator "ChessBase"]
[Result "0-1"]
[Date "2018.12.26"]
[WhiteElo "2518"]
[BlackElo "2630"]
[PlyCount "94"]
[TimeControl "900+10"]

1. e4 c5 2. Nf3 b6 3. d4 cxd4 4. Nxd4 Bb7 5. Nc3 a6 6. Bg5 Qc7 7. Qd2 e6 8. 0-0-0 Bb4 9. Nde2 Nf6 10. f3 Nc6 11. Bf4 Qd8 12. Bd6 Bxd6 13. Qxd6 Qe7 14. Qc7 d5 15. Qxb6 dxe4 16. Nxe4 Nxe4 17. fxe4 0-0 18. Nc3 Rab8 19. Bc4 Qg5+ 20. Kb1 Qxg2 21. Qe3 Ne5 22. Be2 Qg6 23. h4 Qf6 24. h5 Rfc8 25. Qg3 g6 26. Rdf1 Qg7 27. h6 Qh8 28. Rh5 Nd7 29. e5 Rc5 30. Rd1 Nxe5 31. Qe3 Rxc3 32. Qxc3 gxh5 33. Qc7 Rf8 34. Qxb7 Qf6 35. Qxa6 Qxh6 36. a4 Qe3 37. Bxh5 Rb8 38. Be2 h5 39. Bb5 Kg7 40. Qd6 Rh8 41. a5 h4 42. a6 h3 43. a7 h2 44. Qb8 Qe4 45. Bc6 Nxc6 46. Qg3+ Qg6 47. Qc3+ e5 0-1

[Event "FIDE World Rapid-ch Open 2018"]
[White "Grigoriants, Sergey"]
[Black "Gordievsky, Dmitry"]
[Site "St. Petersburg"]
[Round "3.75"]
[Annotator "ChessBase"]
[Result "1/2-1/2"]
[Date "2018.12.26"]
[WhiteElo "2540"]
[BlackElo "2614"]
[PlyCount "104"]
[TimeControl "900+10"]

1. e4 {[%emt 0:0:0]} c5 {[%emt 0:0:0]} 2. Nf3 {[%emt 0:0:0]} Nc6 {[%emt 0:0:0]
} 3. d4 {[%emt 0:0:14]} cxd4 {[%emt 0:0:0]} 4. Nxd4 {[%emt 0:0:0]} Qb6 {[%emt 0:0:0]} 5. Nb3 {[%emt 0:0:18]} Nf6 {[%emt 0:0:0]} 6. Nc3 {[%emt 0:0:47]} e6 {[%emt 0:0:1]} 7. Bd3 {[%emt 0:0:15]} Be7 {[%emt 0:0:0]} 8. Be3 {[%emt 0:0:29]} Qc7 {[%emt 0:0:3]} 9. f4 {[%emt 0:0:14]} d6 {[%emt 0:0:20]} 10. g4 {[%emt 0:1:15]} h6 {[%emt 0:2:21]} 11. Qe2 {[%emt 0:0:0]} a6 {[%emt 0:0:36]} 12. 0-0-0 {[%emt 0:1:19]} b5 {[%emt 0:0:22]} 13. Qg2 {[%emt 0:2:19]} Bb7 {[%emt 0:2:0]} 14. g5 {[%emt 0:1:39]} hxg5 {[%emt 0:0:1]
} 15. fxg5 {[%emt 0:0:1]} Nd7 {[%emt 0:0:3]} 16. g6 {[%emt 0:0:0]} f6 {[%emt 0:0:45]} 17. h4 {[%emt 0:0:55]} Nce5 {[%emt 0:0:3]} 18. Kb1 {[%emt 0:0:18]} f5 {[%emt 0:3:29]} 19. Bg5 {[%emt 0:3:37]} b4 {[%emt 0:0:0]} 20. Ne2 {[%emt 0:0:47]} Bxg5 {[%emt 0:1:9]} 21. hxg5 {[%emt 0:0:2]
} Rxh1 {[%emt 0:0:4]} 22. Qxh1 {[%emt 0:0:11]} 0-0-0 {[%emt 0:0:15]} 23. Nf4 {[%emt 0:0:22]} Re8 {[%emt 0:0:41]} 24. Qe1 {[%emt 0:0:45]} fxe4 {[%emt 0:0:31]
} 25. Bxe4 {[%emt 0:0:3]} d5 {[%emt 0:0:23]} 26. Bg2 {[%emt 0:0:0]} Qd6 {[%emt 0:0:56]} 27. Na5 {[%emt 0:1:30]} Ba8 {[%emt 0:0:34]} 28. Rd4 {[%emt 0:0:17]} Kd8 {[%emt 0:0:50]} 29. Rxb4 {[%emt 0:0:12]} Nc6 {[%emt 0:0:27]
} 30. Nxc6+ {[%emt 0:0:10]} Bxc6 {[%emt 0:0:1]} 31. a3 {[%emt 0:0:23]
} a5 {[%emt 0:0:41]} 32. Rd4 {[%emt 0:0:23]} a4 {[%emt 0:0:1]
} 33. Rb4 {[%emt 0:0:35]} e5 {[%emt 0:0:11]} 34. Ne2 {[%emt 0:0:15]} Qxg6 {[%emt 0:0:11]
} 35. Qd2 {[%emt 0:0:2]} Qd6 {[%emt 0:0:8]} 36. Nc3 {[%emt 0:0:0]} d4 {[%emt 0:0:9]} 37. Nb5 {[%emt 0:0:6]} Bxb5 {[%emt 0:0:9]} 38. Rxb5 {[%emt 0:0:1]} e4 {[%emt 0:0:2]} 39. Qa5+ {[%emt 0:0:9]} Qc7 {[%emt 0:0:18]
} 40. Qa8+ {[%emt 0:0:9]} Qc8 {[%emt 0:0:10]} 41. Bxe4 {[%emt 0:0:18]
} Qxa8 {[%emt 0:0:2]} 42. Bxa8 {[%emt 0:0:1]} Re1+ 43. Ka2 Kc7 {[%emt 0:0:35]} 44. Bf3 {[%emt 0:0:40]} Ne5 {[%emt 0:0:9]} 45. Bd5 {[%emt 0:0:9]
} d3 {[%emt 0:0:13]} 46. cxd3 {[%emt 0:0:4]} Nxd3 {[%emt 0:0:0]} 47. b4 {[%emt 0:0:6]} Re2+ {[%emt 0:0:17]} 48. Kb1 {[%emt 0:0:3]} Rb2+ {[%emt 0:0:5]} 49. Ka1 {[%emt 0:0:1]} Rc2 {[%emt 0:0:13]} 50. Be4 {[%emt 0:0:27]
} Rc1+ 51. Ka2 Rc2+ {[%emt 0:0:2]} 52. Kb1 {[%emt 0:0:5]} Rc1+ {[%emt 0:0:4]} 1/2-1/2

[Event "FIDE World Rapid-ch Open 2018"]
[White "Khismatullin, Denis"]
[Black "Sanal, Vahap"]
[Site "St. Petersburg"]
[Round "3.76"]
[Annotator "ChessBase"]
[Result "1-0"]
[Date "2018.12.26"]
[WhiteElo "2621"]
[BlackElo "2490"]
[PlyCount "92"]
[TimeControl "900+10"]

1. d4 {[%emt 0:0:0]} Nf6 {[%emt 0:0:0]} 2. Nf3 {[%emt 0:0:0]} d5 {[%emt 0:0:0]
} 3. c4 {[%emt 0:0:0]} e6 {[%emt 0:0:0]} 4. Nc3 {[%emt 0:0:0]} c6 {[%emt 0:0:0]} 5. e3 {[%emt 0:0:24]} Nbd7 {[%emt 0:0:2]} 6. Qc2 {[%emt 0:0:8]
} Bd6 {[%emt 0:0:5]} 7. g4 {[%emt 0:0:41]} Nxg4 {[%emt 0:0:0]} 8. Rg1 {[%emt 0:0:1]} Qf6 {[%emt 0:0:2]} 9. Rxg4 {[%emt 0:0:20]} Qxf3 {[%emt 0:0:3]} 10. Rxg7 {[%emt 0:0:3]} Nf6 {[%emt 0:1:16]} 11. h3 {[%emt 0:0:40]
} Bd7 {[%emt 0:4:21]} 12. Bd2 {[%emt 0:3:3]} Kf8 {[%emt 0:0:0]} 13. Rg5 {[%emt 0:0:21]} Ne4 {[%emt 0:1:4]} 14. Nxe4 {[%emt 0:0:14]} Qxe4 {[%emt 0:1:24]} 15. Qb3 {[%emt 0:1:4]} b6 {[%emt 0:2:10]} 16. Bb4 {[%emt 0:3:59]
} Bxb4+ {[%emt 0:1:41]} 17. Qxb4+ {[%emt 0:0:2]} Ke8 {[%emt 0:0:0]} 18. 0-0-0 {[%emt 0:3:12]} Qf3 {[%emt 0:1:5]} 19. Qd2 {[%emt 0:1:16]
} Ke7 {[%emt 0:0:37]} 20. Rg4 {[%emt 0:1:4]} a5 {[%emt 0:1:20]} 21. Be2 {[%emt 0:0:51]
} Qf6 {[%emt 0:0:8]} 22. Rdg1 {[%emt 0:0:28]} Kd6 {[%emt 0:0:0]} 23. Rf4 {[%emt 0:0:18]} Qe7 {[%emt 0:0:2]} 24. Qc3 {[%emt 0:0:21]} Kc7 {[%emt 0:0:27]} 25. Rg7 {[%emt 0:0:3]} Be8 {[%emt 0:0:3]} 26. Bh5 {[%emt 0:0:15]
} Rf8 {[%emt 0:0:2]} 27. Rxh7 {[%emt 0:0:10]} Rd8 {[%emt 0:0:0]} 28. h4 {[%emt 0:0:5]} Kb7 {[%emt 0:0:6]} 29. Bg6 {[%emt 0:0:29]} Rd7 {[%emt 0:0:8]} 30. a3 {[%emt 0:0:10]} Qd8 {[%emt 0:0:18]} 31. Bd3 {[%emt 0:0:0]} Rg8 {[%emt 0:0:4]} 32. Kb1 {[%emt 0:0:4]} Qc7 {[%emt 0:0:14]} 33. Ka2 {[%emt 0:0:10]} Qd8 {[%emt 0:0:28]} 34. c5 {[%emt 0:0:17]} Ka7 {[%emt 0:0:0]} 35. cxb6+ {[%emt 0:0:7]} Qxb6 {[%emt 0:0:1]} 36. h5 {[%emt 0:0:7]
} Rb7 {[%emt 0:0:10]} 37. h6 {[%emt 0:0:5]} Rg1 {[%emt 0:0:9]} 38. Rh8 {[%emt 0:0:20]
} Rb8 {[%emt 0:0:19]} 39. h7 {[%emt 0:0:6]} a4 {[%emt 0:0:8]
} 40. Bc2 {[%emt 0:0:19]} Qa6 {[%emt 0:0:7]} 41. Bd3 {[%emt 0:0:11]} Qb6 {[%emt 0:0:1]
} 42. Qc5 {[%emt 0:0:3]} Rd1 {[%emt 0:0:21]} 43. Rxf7+ {[%emt 0:0:13]
} Bxf7 {[%emt 0:0:16]} 44. Rxb8 {[%emt 0:0:3]} Qxc5 {[%emt 0:0:0]} 45. dxc5 {[%emt 0:0:8]} e5 {[%emt 0:0:3]} 46. Rf8 {[%emt 0:0:7]} Be6 {[%emt 0:0:4]} 1-0